bitfinex-derivatives/quotes_SOLF0:USTF0_20240913
["timestamp","ask_amount","ask_price","bid_price","bid_amount"]
[1726265814831,1.3638,139.65,139.59,3.5799]
[1726265815622,4.9422,139.65,139.58,3.5801]
[1726265817333,4.9422,139.65,139.59,3.5799]
[1726265817729,1.3638,139.65,139.59,3.5799]
[1726265818035,1.3638,139.65,139.57,3.49663848]
[1726265818231,1.3638,139.65,139.49,10.0029]
[1726265818534,1.3638,139.65,139.5,1.31562658]
[1726265818836,1.3638,139.65,139.61,3.5792]
[1726265819033,3.5776,139.68,139.61,3.5792]
[1726265820337,3.5779,139.67,139.49,10.0029]
[1726265820539,3.5779,139.67,139.5,1.31567643]
[1726265820733,3.5779,139.67,139.6,3.5795]
[1726265820928,3.5779,139.67,139.59,3.50412182]
[1726265821141,3.5779,139.67,139.49,10.0029]
[1726265821340,3.5776,139.68,139.5,1.31566997]
[1726265821535,2.6924,139.7,139.49,17.1677]
[1726265821536,2.6924,139.7,139.51,1.31560835]
[1726265821736,2.6924,139.7,139.52,1.31560835]
[1726265821942,2.6924,139.7,139.53,1.31560835]
[1726265822138,66.49185556,139.89,139.54,1.4015]
[1726265822347,136.37399413,139.96,139.55,1.31560835]
[1726265822348,3.83950734,139.82,139.55,1.31560835]
[1726265822543,1.06650734,139.81,139.56,1.3147]
[1726265822742,1.06650734,139.81,139.57,1.31560835]
[1726265822942,2.773,139.82,139.58,1.31560835]
[1726265823142,2.773,139.82,139.57,1.31560835]
[1726265823343,2.773,139.82,139.58,1.31560835]
[1726265823535,2.773,139.82,139.59,1.31560835]
[1726265823740,2.773,139.82,139.6,1.4015]
[1726265824044,2.773,139.82,139.61,1.31560835]
[1726265824229,2.773,139.82,139.61,1.31445462]
[1726265824743,2.773,139.82,139.66,148.46999146]
[1726265824937,2.773,139.82,139.67,2.8217]
[1726265825139,2.773,139.82,139.77,3.5753]
[1726265825945,2.773,139.82,139.75,3.5756]
[1726265826242,2.773,139.82,139.67,13.64350284]
[1726265826643,2.773,139.82,139.67,6.46950284]
[1726265826940,21.52,139.8,139.67,1.4192]
[1726265827163,21.52,139.8,139.66,148.46999146]
[1726265827164,1.3822,139.79,139.66,148.46999146]
[1726265827333,1.3822,139.79,139.59,2.8217]
[1726265827534,3.577,139.71,139.61,3.5794]
[1726265827741,4.1916,139.7,139.61,3.5794]
[1726265828543,4.1916,139.7,139.59,2.8217]
[1726265828733,4.1916,139.7,139.6,1.31509271]
[1726265828938,4.1916,139.7,139.59,2.8217]
[1726265829838,4.1916,139.7,139.6,1.3151314]
[1726265830035,4.1916,139.7,139.59,2.8217]
[1726265830240,4.1916,139.7,139.6,1.31516229]
[1726265830444,4.1916,139.7,139.59,2.8217]
[1726265830742,4.1916,139.7,139.6,1.31518707]
[1726265830947,4.1916,139.7,139.59,2.8217]
[1726265832044,4.1916,139.7,139.59,1.4192]
[1726265832548,7.7687,139.7,139.61,3.5791]
[1726265832747,4.1916,139.7,139.59,1.4192]
[1726265832945,4.1916,139.7,139.62,3.579]
[1726265833245,4.1916,139.7,139.59,1.4192]
[1726265833454,3.5774,139.69,139.61,3.5794]
[1726265833752,4.1916,139.7,139.61,3.5794]
[1726265833961,4.1916,139.7,139.59,3.59474949]
[1726265834143,4.1916,139.7,139.52,1.3253]
[1726265834343,4.1916,139.7,139.53,1.31536695]
[1726265834648,4.1916,139.7,139.63,3.5787]
[1726265835349,7.7687,139.7,139.62,3.5789]
[1726265835645,7.7687,139.7,139.52,1.3253]
[1726265835841,4.1916,139.7,139.53,1.3153369]
[1726265836247,4.1916,139.7,139.54,1.3153369]
[1726265836444,25.7116,139.7,139.55,1.3153369]
[1726265836744,25.7116,139.7,139.56,1.3153369]
[1726265836948,25.7116,139.7,139.57,1.4272]
[1726265837245,25.7116,139.7,139.58,1.3546]
[1726265837452,25.7116,139.7,139.64,3.5784]
[1726265838149,25.7116,139.7,139.62,3.51242425]
[1726265838341,4.1916,139.7,139.58,1.3546]
[1726265838752,4.1916,139.7,139.59,1.3149132]
[1726265838950,2.8222,139.7,139.59,1.3149132]
[1726265839247,2.8222,139.7,139.69,3.5773]
[1726265840153,22.9024,139.78,139.66,3.49868726]
[1726265840339,24.2451,139.78,139.58,12.044464]
[1726265840538,24.2451,139.78,139.59,1.31467236]
[1726265840954,24.2451,139.78,139.72,3.5764]
[1726265841144,2.7251,139.78,139.72,3.5764]
[1726265841551,24.2451,139.78,139.72,3.5764]
[1726265841951,24.2451,139.78,139.73,3.5763]
[1726265842457,2.7251,139.78,139.74,3.5758]
[1726265842656,2.7251,139.78,139.62,7.174]
[1726265842657,24.2451,139.78,139.7,3.51149241]
[1726265842955,24.2451,139.78,139.63,7.1575]
[1726265843155,24.2451,139.78,139.64,1.31454293]
[1726265843357,24.2451,139.78,139.64,2.70314293]
[1726265843660,21.52,139.77,139.59,1.4186]
[1726265844046,21.52,139.77,139.58,1.3886]
[1726265844252,3.5765,139.73,139.62,3.5791]
[1726265844457,1.3418,139.72,139.58,4.94015425]
[1726265844656,1.3213,139.71,139.58,1.3886]
[1726265844856,1.3213,139.71,139.62,3.5791]
[1726265845155,1.3256,139.7,139.58,4.9945239]
[1726265845351,1.3256,139.7,139.58,1.3886]
[1726265845656,1.3256,139.7,139.59,1.31507335]
[1726265845853,1.3256,139.7,139.59,3.52664142]
[1726265846066,1.3256,139.7,139.58,1.3886]
[1726265846250,1.3256,139.7,139.58,5.05375865]
[1726265846450,1.3256,139.7,139.58,1.3886]
[1726265847058,1.3256,139.7,139.58,12.08995728]
[1726265847255,1.3256,139.7,139.67,3.5778]
[1726265847663,1.3256,139.7,139.58,4.98682655]
[1726265847863,1.3256,139.7,139.6,1.3389]
[1726265850053,1.3256,139.7,139.64,3.5786]
[1726265850853,1.3256,139.7,139.58,4.98682655]
[1726265851069,1.3256,139.7,139.65,3.5784]
[1726265852355,1.3256,139.7,139.66,3.578]
[1726265852557,1.3256,139.7,139.59,1.4234]
[1726265854267,1.3256,139.7,139.65,3.5782]
[1726265855065,1.3256,139.7,139.64,3.5786]
[1726265855465,1.3256,139.7,139.58,4.98682655]
[1726265855860,1.3256,139.7,139.63,3.5787]
[1726265856564,22.8456,139.7,139.53,1.3972]
[1726265856756,22.8456,139.7,139.54,1.31540329]
[1726265856955,22.8456,139.7,139.55,3.64433171]
[1726265857164,3.5775,139.69,139.53,1.3972]
[1726265857367,3.5775,139.69,139.54,1.31539977]
[1726265857665,3.5775,139.69,139.53,1.3972]
[1726265857666,21.52,139.69,139.53,1.3972]
[1726265858068,3.5776,139.68,139.54,1.31542915]
[1726265858855,3.5776,139.68,139.53,1.3972]
[1726265859356,3.5776,139.68,139.6,3.5795]
[1726265859561,3.5779,139.67,139.56,3.52392492]
[1726265859768,1.3462,139.66,139.62,3.5789]
[1726265860364,1.3462,139.66,139.62,3.5791]
[1726265862970,1.3462,139.66,139.63,3.5789]
[1726265863566,21.52,139.68,139.58,3.49564474]
[1726265863767,21.52,139.68,139.59,1.3608]
[1726265864174,21.52,139.68,139.6,1.3145]
[1726265864369,2.6426,139.7,139.6,1.3145]
[1726265865374,1.3256,139.7,139.6,1.3145]
[1726265865867,1.3256,139.7,139.69,3.5773]
[1726265866069,3.5756,139.76,139.69,3.5773]
[1726265866274,1.3565,139.75,139.66,3.50978057]
[1726265866470,1.3565,139.75,139.6,1.3145]
[1726265866673,1.3565,139.75,139.61,1.31475272]
[1726265867270,1.3565,139.75,139.71,3.5766]
[1726265867872,1.3565,139.75,139.72,3.5766]
[1726265868679,1.3565,139.75,139.67,3.66293984]
[1726265868978,1.3565,139.75,139.61,7.1588]
[1726265869165,1.3565,139.75,139.73,3.5763]
[1726265869366,1.3565,139.75,139.68,3.50233605]
[1726265869564,1.3565,139.75,139.61,7.1588]
[1726265869772,1.3565,139.75,139.72,3.5764]
[1726265870378,1.3565,139.75,139.71,3.5767]
[1726265870975,1.3565,139.75,139.72,3.5765]
[1726265871978,22.8765,139.75,139.68,3.56851911]
[1726265872181,22.8765,139.75,139.61,7.1588]
[1726265872382,22.8765,139.75,139.62,1.31475842]
[1726265872682,22.8765,139.75,139.71,3.5766]
[1726265872881,1.3565,139.75,139.71,3.5766]
[1726265873381,1.3565,139.75,139.61,7.1588]
[1726265873681,1.3565,139.75,139.71,3.5767]
[1726265874274,1.3565,139.75,139.68,3.53356056]
[1726265874480,1.3565,139.75,139.61,14.3328]
[1726265874679,1.3565,139.75,139.62,1.31468779]
[1726265875083,1.3565,139.75,139.71,3.5767]
[1726265876078,1.3565,139.75,139.68,3.53964242]
[1726265876279,1.3565,139.75,139.62,14.3321]
[1726265876480,1.3565,139.75,139.63,1.31461981]
[1726265876670,1.3565,139.75,139.62,7.1581]
[1726265876874,1.3565,139.75,139.63,8.48862621]
[1726265877070,1.3565,139.75,139.63,7.174]
[1726265877284,1.3565,139.75,139.72,3.5764]
[1726265878288,1.3565,139.75,139.71,3.5767]
[1726265878678,1.3565,139.75,139.63,7.174]
[1726265878882,1.3565,139.75,139.63,10.80031764]
[1726265879081,1.3565,139.75,139.7,3.5769]
[1726265879282,1.3565,139.75,139.63,10.80031764]
[1726265881085,22.8765,139.75,139.63,10.80031764]
[1726265881290,22.8765,139.75,139.7,3.577]
[1726265881587,22.8765,139.75,139.63,10.80031764]
[1726265881984,26.4523,139.75,139.68,3.5774]
[1726265882185,26.4523,139.75,139.63,10.80031764]
[1726265882383,25.0962,139.74,139.68,3.5775]
[1726265882583,21.52,139.74,139.63,10.80031764]
[1726265883186,21.52,139.74,139.69,3.5772]
[1726265883894,1.3565,139.75,139.69,3.5772]
[1726265884193,1.3565,139.75,139.7,3.577]
[1726265884487,1.3565,139.75,139.71,3.5766]
[1726265885395,1.3565,139.75,139.72,3.5764]
[1726265887789,1.3565,139.75,139.71,3.5767]
[1726265888696,22.8765,139.75,139.72,3.5766]
[1726265889895,1.3565,139.75,139.63,10.80031764]
[1726265890595,1.3565,139.75,139.71,3.5767]
[1726265891797,1.3565,139.75,139.72,3.5765]
[1726265894798,1.3565,139.75,139.74,3.5761]
[1726265896204,2.6525,139.77,139.74,3.5761]
[1726265896790,2.6525,139.77,139.75,3.5756]
[1726265897195,2.6525,139.77,139.66,2.8173]
[1726265898996,6.2279,139.77,139.66,2.8173]
[1726265899202,21.52,139.76,139.66,2.8173]
[1726265899905,25.0957,139.76,139.66,2.8173]
[1726265900108,21.52,139.75,139.66,2.8173]
[1726265901206,3.576,139.75,139.68,3.5776]
[1726265901412,3.576,139.75,139.66,2.8173]
[1726265902004,3.5756,139.76,139.69,3.5773]
[1726265903201,3.5756,139.76,139.7,3.5771]
[1726265903707,3.5758,139.75,139.69,3.5773]
[1726265904304,3.5758,139.75,139.7,3.5771]
[1726265905003,6.2279,139.77,139.72,3.5766]
[1726265905207,21.52,139.76,139.72,3.5766]
[1726265905610,21.52,139.76,139.66,1.3788]
[1726265905611,25.0956,139.76,139.71,3.5767]
[1726265905805,25.0956,139.76,139.66,1.3788]
[1726265906107,3.5756,139.76,139.66,1.3788]
[1726265907010,3.5756,139.76,139.7,3.5769]
[1726265907212,3.5756,139.76,139.66,1.3788]
[1726265907707,3.5759,139.75,139.66,1.3788]
[1726265908702,3.5759,139.75,139.69,3.5772]
[1726265908903,2.6525,139.77,139.69,3.5772]
[1726265909708,3.5759,139.75,139.7,3.577]
[1726265910218,3.5756,139.76,139.71,3.5767]
[1726265910416,2.6525,139.77,139.66,1.3788]
[1726265911013,21.52,139.76,139.71,3.5766]
[1726265911314,21.52,139.76,139.66,1.3788]
[1726265912214,21.52,139.76,139.67,1.4337]
[1726265913016,1.3828,139.79,139.73,3.5761]
[1726265913213,1.3828,139.79,139.72,3.52697373]
[1726265913416,1.3828,139.79,139.67,1.4337]
[1726265913605,21.52,139.78,139.67,1.4337]
[1726265914819,21.52,139.78,139.72,3.5764]
[1726265915014,21.52,139.78,139.72,3.51481175]
[1726265915211,21.52,139.78,139.67,1.4337]
[1726265915613,21.52,139.77,139.72,3.5764]
[1726265915821,21.52,139.77,139.72,7.16525673]
[1726265916124,25.0954,139.77,139.67,1.4337]
[1726265916321,21.52,139.77,139.67,1.4337]
[1726265916710,1.3828,139.79,139.73,3.5763]
[1726265916912,21.52,139.78,139.71,3.5903867]
[1726265917120,21.52,139.78,139.67,1.4337]
[1726265917723,25.0951,139.78,139.72,3.5764]
[1726265918020,3.5751,139.78,139.72,3.5764]
[1726265918609,3.5753,139.77,139.72,3.5764]
[1726265918826,3.5753,139.77,139.7,3.5145662]
[1726265919031,1.3828,139.79,139.67,1.4337]
[1726265919320,3.5753,139.78,139.72,3.5764]
[1726265920309,3.5753,139.78,139.73,3.5763]
[1726265920510,21.52,139.78,139.67,1.4337]
[1726265920923,21.52,139.78,139.74,3.5758]
[1726265922522,21.52,139.78,139.75,3.5758]
[1726265922725,22.9028,139.79,139.71,3.64491964]
[1726265922926,21.52,139.79,139.68,7.1552]
[1726265923129,21.52,139.79,139.78,3.575]
[1726265923435,21.52,139.79,139.75,3.49299173]
[1726265923619,21.52,139.79,139.76,3.5753]
[1726265924325,21.52,139.79,139.75,3.5757]
[1726265924531,21.52,139.79,139.68,7.1552]
[1726265924826,2.7315,139.79,139.67,1.4337]
[1726265925031,3.5753,139.77,139.72,3.5765]
[1726265925223,2.7315,139.79,139.71,3.55630556]
[1726265925423,2.7315,139.79,139.67,1.4337]
[1726265925620,2.7315,139.79,139.58,14.3203]
[1726265925621,21.52,139.77,139.54,229.30417711]
[1726265925944,21.52,139.77,139.63,7.174]
[1726265926426,1.06638308,139.76,139.63,7.174]
[1726265926627,3.5778,139.68,139.63,7.174]
[1726265926823,2.7198,139.67,139.63,7.174]
[1726265927834,2.7198,139.67,139.61,7.174]
[1726265929227,2.7198,139.67,139.62,7.174]
[1726265930725,2.7198,139.67,139.63,7.174]
[1726265931827,2.7198,139.67,139.63,10.7527]
[1726265932023,1.3017,139.67,139.63,7.174]
[1726265932435,1.3017,139.67,139.65,3.5782]
[1726265933728,1.3017,139.67,139.64,3.5786]
[1726265937529,1.3017,139.67,139.63,7.174]
[1726265938533,1.3017,139.67,139.62,7.174]
[1726265939235,4.8796,139.67,139.62,7.174]
[1726265939750,4.8796,139.67,139.59,8.5375]
[1726265939938,1.3017,139.67,139.62,7.174]
[1726265940836,1.3964,139.72,139.62,7.174]
[1726265941142,1.3964,139.72,139.59,1.3635]
[1726265941143,1.3861,139.71,139.66,3.578]
[1726265942142,1.3861,139.71,139.67,3.5777]
[1726265942635,1.3861,139.71,139.59,8.5375]
[1726265942834,1.3861,139.71,139.66,3.5779]
[1726265943644,1.3861,139.71,139.59,8.5375]
[1726265944140,4.9631,139.71,139.65,3.5782]
[1726265944441,1.3861,139.71,139.65,3.60471303]
[1726265944640,1.3861,139.71,139.59,8.5375]
[1726265945128,1.3861,139.71,139.63,7.174]
[1726265946434,1.3861,139.71,139.67,3.5777]
[1726265947041,1.3861,139.71,139.68,3.5774]
[1726265947431,1.3861,139.71,139.65,3.49042256]
[1726265947744,1.3861,139.71,139.69,3.5772]
[1726265947941,1.3413,139.77,139.66,3.49900909]
[1726265948241,1.3202,139.76,139.73,3.5762]
[1726265948440,1.3202,139.76,139.7,3.4913453]
[1726265948641,21.52,139.77,139.68,1.3283]
[1726265948847,1.3202,139.88,139.68,1.3283]
[1726265949157,1.3202,139.88,139.68,12.16071756]
[1726265949442,1.3202,139.88,139.69,1.31377499]
[1726265949641,1.3202,139.88,139.68,4.90801114]
[1726265949839,1.3202,139.88,139.78,3.575]
[1726265950039,1.3202,139.88,139.75,3.62478846]
[1726265950239,1.3202,139.88,139.68,4.90801114]
[1726265950438,1.3202,139.88,139.68,12.08201114]
[1726265950644,1.3202,139.88,139.69,1.31376883]
[1726265950846,1.3202,139.88,139.68,12.08201114]
[1726265951537,1.3202,139.88,139.8,3.5745]
[1726265951949,1.3202,139.88,139.78,7.18311228]
[1726265952245,1.3202,139.88,139.78,3.5748]
[1726265952440,3.573,139.86,139.68,12.08201114]
[1726265952751,1.4396,139.85,139.76,3.5755]
[1726265952939,2.7508,139.85,139.76,3.5755]
[1726265953546,2.7508,139.85,139.68,12.08201114]
[1726265954643,2.7508,139.85,139.68,4.90801114]
[1726265954947,2.7508,139.85,139.69,1.31383392]
[1726265955243,2.7508,139.85,139.75,3.5756]
[1726265955444,6.3241,139.85,139.68,4.90801114]
[1726265955646,6.3241,139.85,139.75,3.5758]
[1726265956039,6.3241,139.85,139.68,4.90801114]
[1726265956040,2.7508,139.85,139.68,4.90801114]
[1726265957848,2.7508,139.85,139.75,3.5756]
[1726265958244,1.3202,139.88,139.75,3.57556927]
[1726265958449,1.3202,139.88,139.81,3.574]
[1726265958651,1.3202,139.88,139.76,1.4172]
[1726265958849,1.3202,139.88,139.76,4.93876737]
[1726265959047,1.3202,139.88,139.81,3.5741]
[1726265959350,1.3202,139.88,139.76,1.4172]
[1726265960052,1.3202,139.88,139.81,3.574]
[1726265960655,1.3202,139.88,139.82,3.5738]
[1726265961046,1.3202,139.88,139.76,4.93089954]
[1726265961241,1.3202,139.88,139.82,3.5739]
[1726265961753,1.3202,139.88,139.83,3.5737]
[1726265962350,1.3202,139.88,139.82,3.5739]
[1726265962544,6.3491,139.91,139.8,3.54747782]
[1726265962750,1.4235,139.9,139.76,1.4172]
[1726265963248,4.9956,139.9,139.76,4.99184786]
[1726265963549,4.9956,139.9,139.76,1.4172]
[1726265963756,1.4235,139.9,139.76,5.02581041]
[1726265964356,4.9955,139.9,139.76,5.02581041]
[1726265964559,1.4235,139.9,139.76,5.02581041]
[1726265964757,1.4235,139.9,139.81,3.5742]
[1726265964958,1.4235,139.9,139.76,5.02581041]
[1726265965354,3.5722,139.89,139.81,3.5742]
[1726265967349,3.5722,139.89,139.82,3.574]
[1726265967756,3.5725,139.88,139.82,3.574]
[1726265968255,3.5728,139.87,139.81,3.5742]
[1726265968959,3.5728,139.87,139.76,5.02581041]
[1726265968960,3.5728,139.87,139.82,3.5739]
[1726265969962,1.4235,139.9,139.4,3.30417711]
[1726265970161,21.52,139.87,139.41,1.31472276]
[1726265970361,21.52,139.83,139.42,1.31472276]
[1726265970563,1.06582893,139.82,139.43,2.75172276]
[1726265970761,25.09250289,139.83,139.44,2.65962276]
[1726265970963,25.09250289,139.83,139.66,3.578]
[1726265970964,3.5757,139.76,139.66,3.578]
[1726265971261,3.5757,139.76,139.44,30.9599]
[1726265971457,3.5759,139.75,139.45,1.31487978]
[1726265971654,1.0,139.86,139.46,1.31487978]
[1726265971863,1.0,139.86,139.44,9.4999]
[1726265971864,1.06616399,139.85,139.47,1.31487978]
[1726265972061,3.5764,139.73,139.48,1.31501063]
[1726265972258,3.5764,139.73,139.49,1.31501063]
[1726265972562,21.52,139.76,139.5,1.437]
[1726265972766,21.52,139.76,139.5,2.7515]
[1726265972961,21.52,139.76,139.51,1.31504434]
[1726265973370,3.5766,139.73,139.63,3.5788]
[1726265973555,3.5766,139.73,139.52,1.4201]
[1726265973556,21.52,139.76,139.61,3.57721064]
[1726265973761,21.52,139.76,139.62,1.4361]
[1726265973956,3.5768,139.72,139.62,1.4361]
[1726265974766,3.5768,139.72,139.62,5.0152]
[1726265975063,21.52,139.76,139.62,1.4361]
[1726265975268,21.52,139.74,139.62,1.4361]
[1726265976067,21.52,139.74,139.62,4.2176]
[1726265976269,3.5765,139.73,139.63,3.5789]
[1726265976461,21.52,139.74,139.63,3.5789]
[1726265977362,3.5768,139.72,139.63,3.5789]
[1726265977570,21.52,139.74,139.63,3.5789]
[1726265978874,3.5771,139.7,139.63,3.5789]
[1726265981077,3.5771,139.7,139.62,7.7967]
[1726265981469,0.98793809,139.81,139.62,229.2176]
[1726265981668,21.46,139.94,139.63,1.31486484]
[1726265981974,3.5736,139.84,139.64,1.31486484]
[1726265982165,2.8226,139.83,139.65,1.31486484]
[1726265982369,2.8226,139.83,139.66,1.31486484]
[1726265982570,2.8226,139.83,139.62,117.78669717]
[1726265982764,2.8226,139.83,139.63,2.31442594]
[1726265982965,2.8226,139.83,139.64,1.31442594]
[1726265983476,2.8226,139.83,139.65,1.31449923]
[1726265983689,2.8226,139.83,139.62,117.78669717]
[1726265984067,3.5755,139.77,139.68,3.5774]
[1726265984781,2.8226,139.83,139.62,117.78669717]
[1726265984967,2.8226,139.83,139.63,1.31453442]
[1726265985781,1.83466191,139.83,139.63,1.31453442]
[1726265987175,3.5747,139.8,139.63,1.31453442]
[1726265987467,1.83466191,139.83,139.64,1.31423581]
[1726265987682,1.83466191,139.83,139.65,1.31423581]
[1726265987985,3.5743,139.82,139.66,1.31423581]
[1726265988180,1.83466191,139.83,139.67,1.31423581]
[1726265988377,3.5745,139.81,139.68,1.31423581]
[1726265988570,3.5745,139.81,139.69,2.0529]
[1726265988774,1.83466191,139.83,139.69,5.55545003]
[1726265989183,1.83466191,139.83,139.69,2.0529]
[1726265989788,3.5752,139.78,139.7,3.5771]
[1726265989987,1.83466191,139.83,139.69,2.0529]
[1726265990278,21.46,139.76,139.69,4.8913]
[1726265990686,21.46,139.76,139.69,1.3142]
[1726265990979,25.0358,139.76,139.69,1.3142]
[1726265991187,21.46,139.76,139.69,1.3142]
[1726265991575,21.46,139.76,139.7,3.5771]
[1726265991973,21.46,139.76,139.69,1.3142]
[1726265992781,21.46,139.76,139.69,4.86453058]
[1726265993480,1.3011,139.77,139.71,3.5766]
[1726265994186,1.3011,139.77,139.69,4.97566224]
[1726265995991,1.3011,139.77,139.73,3.5761]
[1726265996187,3.5746,139.8,139.73,3.5761]
[1726265996384,3.5746,139.8,139.69,4.97566224]
[1726265996888,3.5746,139.8,139.73,3.5763]
[1726265997284,3.575,139.79,139.69,4.97566224]
[1726265997784,3.5747,139.8,139.69,4.97566224]
[1726265998584,3.5752,139.78,139.71,3.5767]
[1726265998986,1.18679968,139.82,139.71,3.5767]
[1726265999778,1.18679968,139.82,139.63,0.7387]
[1726265999983,1.18679968,139.82,139.64,2.62080851]
[1726266000286,1.18679968,139.82,139.65,1.31451848]
[1726266000287,3.576,139.75,139.65,1.31451848]
[1726266000483,1.18679968,139.82,139.64,1.3064]
[1726266000684,3.5763,139.74,139.64,1.3064]
[1726266000892,1.83466191,139.83,139.67,3.5777]
[1726266001079,1.06587098,139.82,139.67,3.5777]
[1726266001285,1.06587098,139.82,139.69,3.5773]
[1726266001488,1.06587098,139.82,139.64,1.3064]
[1726266001791,3.5754,139.77,139.64,1.3064]
[1726266001990,1.83466191,139.83,139.64,1.3064]
[1726266002188,1.83466191,139.83,139.65,1.31449352]
[1726266003094,3.5751,139.78,139.65,1.31449352]
[1726266003296,1.83466191,139.83,139.65,1.31449352]
[1726266003595,3.5755,139.77,139.7,3.577]
[1726266003781,1.4161,139.82,139.7,3.577]
[1726266003981,3.5755,139.77,139.7,3.577]
[1726266004185,3.5755,139.77,139.71,3.5768]
[1726266004597,3.5751,139.78,139.71,3.5768]
[1726266005594,3.5748,139.79,139.69,3.62846403]
[1726266005894,1.4161,139.82,139.64,1.3064]
[1726266006096,1.4161,139.82,139.74,3.5759]
[1726266006393,1.4161,139.82,139.72,3.60433481]
[1726266006591,1.4161,139.82,139.73,3.5763]
[1726266006782,3.5747,139.8,139.73,3.5763]
[1726266006986,1.4161,139.82,139.73,3.5763]
[1726266007194,1.4161,139.82,139.64,1.3064]
[1726266007388,1.4161,139.82,139.65,1.31447778]
[1726266007585,1.4161,139.82,139.64,1.3064]
[1726266007791,1.4161,139.82,139.69,3.5772]
[1726266008493,3.5759,139.75,139.69,3.5772]
[1726266008799,1.4161,139.82,139.7,3.577]
[1726266008996,3.5757,139.76,139.64,1.3064]
[1726266009393,3.575,139.78,139.64,1.3064]
[1726266009600,1.4161,139.82,139.65,1.31440424]
[1726266010000,1.4161,139.82,139.72,3.5764]
[1726266010199,3.5749,139.79,139.7,3.52436943]
[1726266010400,3.5749,139.79,139.63,0.7387]
[1726266010702,3.5749,139.79,139.65,1.3239]
[1726266011692,3.5749,139.79,139.72,3.5764]
[1726266011898,1.4161,139.82,139.69,3.56013894]
[1726266012088,1.4161,139.82,139.65,1.3239]
[1726266012495,3.575,139.79,139.65,1.3239]
[1726266012699,3.575,139.79,139.72,3.5764]
[1726266015414,3.575,139.79,139.73,3.5763]
[1726266016203,3.5746,139.8,139.74,3.576]
[1726266016415,1.4161,139.82,139.65,1.3239]
[1726266016611,1.4161,139.82,139.63,0.7387]
[1726266016612,1.4161,139.82,139.71,1.3099]
[1726266016913,1.4161,139.82,139.71,4.91459546]
[1726266017506,21.46,139.93,139.72,0.9887]
[1726266017712,2.7258,139.88,139.72,0.9887]
[1726266017913,1.4255,139.87,139.72,0.9887]
[1726266018511,3.5731,139.86,139.72,0.9887]
[1726266018912,3.5731,139.86,139.79,3.5746]
[1726266019611,3.5731,139.86,139.8,3.5745]
[1726266020209,21.46,139.86,139.72,0.9887]
[1726266021011,3.5734,139.85,139.78,3.5749]
[1726266021206,21.46,139.85,139.78,3.5749]
[1726266021419,21.46,139.85,139.78,3.5371544]
[1726266021620,21.46,139.85,139.79,3.5746]
[1726266022111,25.0334,139.85,139.79,3.5746]
[1726266022423,1.4255,139.87,139.72,0.9887]
[1726266023022,3.5737,139.84,139.72,0.9887]
[1726266023521,3.5743,139.82,139.72,0.9887]
[1726266023721,21.46,139.86,139.72,0.9887]
[1726266024114,21.46,139.86,139.76,3.5755]
[1726266024523,21.46,139.86,139.74,3.576]
[1726266024819,21.46,139.86,139.71,3.60469546]
[1726266025022,3.5747,139.8,139.73,3.5761]
[1726266025221,2.7763,139.79,139.73,3.5761]
[1726266025516,6.3512,139.79,139.72,3.50018793]
[1726266025719,21.46,139.78,139.74,3.576]
[1726266026519,2.7763,139.79,139.75,3.5758]
[1726266026714,2.7763,139.79,139.72,3.5986149]
[1726266026715,1.4038,139.79,139.72,3.5986149]
[1726266026917,1.4038,139.79,139.65,0.9874]
[1726266027120,1.4038,139.79,139.75,3.5756]
[1726266027316,1.4038,139.79,139.72,3.61471049]
[1726266027515,1.4038,139.79,139.65,0.9874]